[Event "FIDE Chesscom Grand Swiss 2021"]
[Site "Riga"]
[Date "2021.11.07"]
[Round "11.9"]
[White "Sjugirov, Sanan"]
[Black "Vitiugov, Nikita"]
[Result "1/2-1/2"]
[ECO "C90"]
[WhiteElo "2663"]
[BlackElo "2727"]
[Annotator "RC"]
[PlyCount "134"]
[EventDate "2021.10.27"]
[EventType "swiss"]
[EventCountry "LAT"]
[Tiebreak "Cut1 Buchholz+Sonneborn-Berger (Swiss)"]
[SourceTitle "playchess.com"]
[Source "ChessBase"]
[SourceQuality "1"]
[TimeControl "40/6000+30:20/3000+30:900+30"]

1. e4 {[%emt 0:00:06]} e5 {[%emt 0:00:07]} 2. Nf3 {[%emt 0:00:09]} Nc6 {
[%emt 0:00:07]} 3. Bb5 {[%emt 0:00:09]} a6 {[%emt 0:00:07]} 4. Ba4 {[%emt 0:00:
07]} Nf6 {[%emt 0:00:06]} 5. O-O {[%emt 0:00:09]} Be7 {[%emt 0:00:15]} 6. Re1 {
[%emt 0:00:12]} b5 {[%emt 0:00:16]} 7. Bb3 {[%emt 0:00:05]} O-O {[%emt 0:00:05]
} 8. d3 {[%emt 0:00:15]} d6 {[%emt 0:00:40]} 9. c3 {[%emt 0:00:05]} Na5 {
[%emt 0:06:15]} 10. Bc2 {[%emt 0:00:08]} c5 {[%emt 0:00:04]} 11. Nbd2 {[%emt 0:
00:12]} Re8 {[%emt 0:01:22]} 12. h3 {[%emt 0:00:50]} Bf8 {[%emt 0:01:49]} 13.
Nf1 {[%emt 0:01:56]} h6 {[%emt 0:00:09]} 14. d4 {[%emt 0:10:42]} exd4 {[%emt 0:
02:41]} 15. cxd4 {[%emt 0:01:59]} cxd4 {[%emt 0:00:05]} 16. Ng3 {[%emt 0:05:42]
} Bb7 {[%emt 0:00:58]} 17. Nxd4 {[%emt 0:01:17]} Nc4 {[%emt 0:00:59]} 18. b3 {
[%emt 0:03:48]} Ne5 {[%emt 0:00:56]} 19. Bb2 {[%emt 0:04:47]} Rc8 {[%emt 0:01:
07]} 20. Qd2 {[%emt 0:03:13]} Qb6 {[%emt 0:10:30]} 21. Ndf5 {[%emt 0:08:47]} g6
{[%emt 0:07:39]} 22. Ne3 {[%emt 0:01:12]} h5 {[%emt 0:04:42]} 23. Bd4 {[%emt 0:
18:03]} Qd8 {[%emt 0:06:26]} 24. f3 {[%emt 0:02:11]} h4 {[%emt 0:10:39]} 25.
Ngf1 {[%emt 0:01:08]} Bh6 {[%emt 0:05:39]} 26. Rad1 {[%emt 0:05:32]} Bf4 {
[%emt 0:05:40]} 27. Qf2 {[%emt 0:03:32]} Nh5 {[%emt 0:02:13]} 28. Ng4 {[%emt 0:
03:46]} Qg5 {[%emt 0:02:08]} 29. b4 {[%emt 0:03:42]} Nxg4 {[%emt 0:10:50]} 30.
hxg4 {[%emt 0:02:29]} Bg3 {[%emt 0:04:52]} 31. Nxg3 {[%emt 0:09:05]} hxg3 {
[%emt 0:00:21]} 32. Qd2 {[%emt 0:03:26]} Nf4 {[%emt 0:01:48]} 33. Bb3 {[%emt 0:
00:27]} Qh6 {[%emt 0:03:26]} 34. g5 {[%emt 0:00:42]} Qh4 {[%emt 0:09:51]} 35.
Kf1 {[%emt 0:11:25]} Rc3 {[%emt 0:02:04]} 36. Qxf4 {[%emt 0:00:06]} Qxf4 {
[%emt 0:00:07]} 37. Bxc3 {[%emt 0:00:03]} Qxg5 {[%emt 0:08:20]} 38. Ke2 {
[%emt 0:00:13]} d5 {[%emt 0:02:39]} 39. Rh1 {[%emt 0:00:57]} f6 {[%emt 0:00:13]
} 40. Rh3 {[%emt 0:01:52]} Bc6 {[%emt 0:01:32]} 41. Rdh1 {[%emt 0:52:03]} Kf7 {
[%emt 0:12:46]} 42. Rh7+ {[%emt 0:00:00]} Ke6 {[%emt 0:03:38]} 43. Rd1 {
[%emt 0:00:00]} f5 {[%emt 0:07:46]} 44. Bd2 {[%emt 0:00:00]} Qd8 {[%emt 0:05:
39]} 45. Be3 {[%emt 0:00:00]} Kf6 {[%emt 0:06:05]} 46. Rc1 {[%emt 0:00:00]} Qd6
{[%emt 0:05:44]} 47. Ra7 {[%emt 0:03:50]} fxe4 {[%emt 0:04:18]} 48. Bd4+ {
[%emt 0:01:00]} Kg5 {[%emt 0:00:14]} 49. f4+ {[%emt 0:00:06]} Kg4 {[%emt 0:00:
22]} 50. Rf7 {[%emt 0:01:29]} e3 {[%emt 0:01:09]} 51. Bd1 {[%emt 0:01:57]} Kh5
{[%emt 0:07:09]} 52. Rh7+ {[%emt 0:00:40]} Kg4 {[%emt 0:00:01]} 53. Rf7 {
[%emt 0:00:38]} Kh5 {[%emt 0:00:01]} 54. Rh7+ {[%emt 0:00:43]} Kg4 {[%emt 0:00:
01]} 55. Bxe3 {[%emt 0:00:33]} d4 {[%emt 0:02:03]} 56. Kf1+ {[%emt 0:00:19]}
Kf5 {[%emt 0:00:02]} 57. Rxc6 {[%emt 0:00:09]} Qxc6 {[%emt 0:00:29]} 58. Rf7+ {
[%emt 0:00:04]} Ke6 {[%emt 0:01:28]} 59. Bb3+ {[%emt 0:00:05]} Qc4+ {[%emt 0:
00:09]} 60. Bxc4+ {[%emt 0:00:04]} bxc4 {[%emt 0:00:03]} 61. Rc7 {[%emt 0:05:
19]} dxe3 {[%emt 0:01:24]} 62. Rxc4 {[%emt 0:00:24]} Kd5 {[%emt 0:01:41]} 63.
Rc5+ {[%emt 0:01:41]} Kd4 {[%emt 0:03:05]} 64. Ke2 {[%emt 0:00:06]} Rf8 {
[%emt 0:06:06]} 65. Kf3 {[%emt 0:01:05]} Re8 {[%emt 0:01:08]} 66. Ke2 {[%emt 0:
00:48]} Rf8 {[%emt 0:01:46]} 67. Kf3 {[%emt 0:01:56]} Re8 {[%emt 0:00:37]}
1/2-1/2

[Event "FIDE Chesscom Grand Swiss 2021"]
[Site "Riga"]
[Date "2021.11.07"]
[Round "11.11"]
[White "Nihal Sarin"]
[Black "Dubov, Daniil"]
[Result "1/2-1/2"]
[ECO "D02"]
[WhiteElo "2652"]
[BlackElo "2714"]
[Annotator "ChessBase"]
[PlyCount "60"]
[EventDate "2021.10.27"]
[EventType "swiss"]
[EventCountry "LAT"]
[Tiebreak "Cut1 Buchholz+Sonneborn-Berger (Swiss)"]
[SourceTitle "playchess.com"]
[Source "ChessBase"]
[SourceQuality "1"]
[TimeControl "40/6000+30:20/3000+30:900+30"]

1. Nf3 {[%emt 0:00:20]} d5 {[%emt 0:00:16]} 2. d4 {[%emt 0:00:07]} Nf6 {
[%emt 0:00:05]} 3. Bf4 {[%emt 0:00:04]} g6 {[%emt 0:00:13]} 4. c3 {[%emt 0:03:
44]} Bg7 {[%emt 0:00:07]} 5. h3 {[%emt 0:00:10]} O-O {[%emt 0:00:07]} 6. e3 {
[%emt 0:00:02]} c5 {[%emt 0:00:40]} 7. Nbd2 {[%emt 0:03:04]} Nfd7 {[%emt 0:01:
29]} 8. Be2 {[%emt 0:23:02]} Nc6 {[%emt 0:00:08]} 9. O-O {[%emt 0:00:04]} b6 {
[%emt 0:00:23]} 10. b4 {[%emt 0:17:45]} e5 {[%emt 0:02:11]} 11. dxe5 {[%emt 0:
01:44]} Ndxe5 {[%emt 0:00:50]} 12. Nxe5 {[%emt 0:04:10]} Nxe5 {[%emt 0:00:13]}
13. Nb3 {[%emt 0:12:05]} Bf5 {[%emt 0:09:56]} 14. bxc5 {[%emt 0:01:08]} bxc5 {
[%emt 0:00:07]} 15. Nxc5 {[%emt 0:01:45]} Rc8 {[%emt 0:06:34]} 16. Nb3 {
[%emt 0:00:45]} Rxc3 {[%emt 0:01:11]} 17. Nd4 {[%emt 0:00:17]} Bd7 {[%emt 0:01:
32]} 18. Qd2 {[%emt 0:07:34]} Qa5 {[%emt 0:04:20]} 19. Rac1 {[%emt 0:12:05]}
Ra3 {[%emt 0:05:08]} 20. Qxa5 {[%emt 0:00:08]} Rxa5 {[%emt 0:00:05]} 21. Rc7 {
[%emt 0:02:26]} Rxa2 {[%emt 0:03:32]} 22. Bxe5 {[%emt 0:05:09]} Bxe5 {[%emt 0:
00:07]} 23. Rxd7 {[%emt 0:00:02]} Bxd4 {[%emt 0:00:06]} 24. Bf3 {[%emt 0:00:02]
} Bb6 {[%emt 0:00:05]} 25. Bxd5 {[%emt 0:00:03]} Rc2 {[%emt 0:00:04]} 26. Ra1 {
[%emt 0:02:14]} Rcc8 {[%emt 0:01:51]} 27. Rd1 {[%emt 0:02:19]} Rc7 {[%emt 0:00:
11]} 28. Rxc7 {[%emt 0:01:13]} Bxc7 {[%emt 0:00:02]} 29. Bb3 {[%emt 0:00:06]}
Rd8 {[%emt 0:00:07]} 30. Rxd8+ {[%emt 0:00:04]} Bxd8 1/2-1/2

[Event "FIDE Chesscom Grand Swiss 2021"]
[Site "Riga"]
[Date "2021.11.07"]
[Round "11.17"]
[White "Volokitin, Andrei"]
[Black "Maghsoodloo, Parham"]
[Result "1/2-1/2"]
[ECO "B31"]
[WhiteElo "2652"]
[BlackElo "2701"]
[Annotator "RC"]
[PlyCount "121"]
[EventDate "2021.10.27"]
[EventType "swiss"]
[EventCountry "LAT"]
[Tiebreak "Cut1 Buchholz+Sonneborn-Berger (Swiss)"]
[SourceTitle "playchess.com"]
[Source "ChessBase"]
[SourceQuality "1"]
[TimeControl "40/6000+30:20/3000+30:900+30"]

1. e4 {[%emt 0:00:02]} c5 {[%emt 0:00:04]} 2. Nf3 {[%emt 0:00:05]} Nc6 {
[%emt 0:00:04]} 3. Bb5 {[%emt 0:00:18]} g6 {[%emt 0:00:06]} 4. Bxc6 {[%emt 0:
00:10]} bxc6 {[%emt 0:00:04]} 5. d4 {[%emt 0:00:05]} d6 {[%emt 0:00:04]} 6.
dxc5 {[%emt 0:15:12]} Qa5+ {[%emt 0:00:06]} 7. Nbd2 {[%emt 0:01:23]} Qxc5 {
[%emt 0:00:06]} 8. O-O {[%emt 0:00:06]} Nf6 {[%emt 0:05:21]} 9. a3 {[%emt 0:05:
39]} Bg7 {[%emt 0:11:51]} 10. b4 {[%emt 0:00:30]} Qh5 {[%emt 0:00:37]} 11. Bb2
{[%emt 0:00:09]} O-O {[%emt 0:00:08]} 12. Re1 {[%emt 0:25:55]} a5 {[%emt 0:06:
40]} 13. c4 {[%emt 0:03:15]} Rb8 {[%emt 0:17:41]} 14. Qb3 {[%emt 0:05:17]} axb4
{[%emt 0:25:57]} 15. axb4 {[%emt 0:00:16]} c5 {[%emt 0:00:13]} 16. b5 {[%emt 0:
01:05]} Ne8 {[%emt 0:04:59]} 17. e5 {[%emt 0:29:14]} Bb7 {[%emt 0:00:11]} 18.
Ne4 {[%emt 0:00:39]} Qf5 {[%emt 0:09:04]} 19. Ng3 {[%emt 0:07:10]} Qf4 {
[%emt 0:04:58]} 20. Ne2 {[%emt 0:02:57]} Qf5 {[%emt 0:04:58]} 21. Ng3 {[%emt 0:
00:03]} Qf4 {[%emt 0:00:04]} 22. Re3 {[%emt 0:00:19]} d5 {[%emt 0:06:25]} 23.
cxd5 {[%emt 0:00:26]} Qb4 {[%emt 0:00:18]} 24. Rd1 {[%emt 0:10:25]} Nc7 {
[%emt 0:04:29]} 25. d6 {[%emt 0:00:04]} Qxb3 {[%emt 0:01:47]} 26. Rxb3 {
[%emt 0:00:03]} Rfd8 {[%emt 0:00:04]} 27. Rd2 {[%emt 0:02:35]} exd6 {[%emt 0:
02:13]} 28. exd6 {[%emt 0:00:01]} Ne6 {[%emt 0:00:01]} 29. Bxg7 {[%emt 0:00:02]
} Kxg7 {[%emt 0:00:09]} 30. Ne2 {[%emt 0:01:31]} f6 {[%emt 0:03:09]} 31. h3 {
[%emt 0:00:23]} Kf7 {[%emt 0:00:57]} 32. b6 {[%emt 0:00:30]} Ke8 {[%emt 0:00:
48]} 33. Re3 {[%emt 0:00:37]} Kd7 {[%emt 0:00:29]} 34. Nc3 {[%emt 0:00:01]} Bc6
{[%emt 0:00:39]} 35. Rb2 {[%emt 0:00:55]} Nd4 {[%emt 0:02:37]} 36. Nd2 {
[%emt 0:00:09]} Kxd6 {[%emt 0:00:07]} 37. Nc4+ {[%emt 0:00:50]} Kd7 {[%emt 0:
00:04]} 38. Ra2 {[%emt 0:00:33]} Ra8 {[%emt 0:00:51]} 39. Ra7+ {[%emt 0:00:10]}
Rxa7 {[%emt 0:00:12]} 40. bxa7 {[%emt 0:00:02]} Ba8 {[%emt 0:01:20]} 41. Ne4 {
[%emt 0:34:27]} Kc6 {[%emt 0:01:38]} 42. Nxf6 {[%emt 0:00:33]} Kb5 {[%emt 0:00:
17]} 43. Ne5 {[%emt 0:06:33]} c4 {[%emt 0:02:27]} 44. Ne4 {[%emt 0:00:36]} Kb4
{[%emt 0:02:15]} 45. Nc3 {[%emt 0:00:07]} Rc8 {[%emt 0:10:14]} 46. Na2+ {
[%emt 0:00:10]} Kb5 {[%emt 0:01:11]} 47. Nxc4 {[%emt 0:01:05]} Rxc4 {[%emt 0:
03:54]} 48. Re8 {[%emt 0:00:04]} Bc6 {[%emt 0:08:13]} 49. a8=Q {[%emt 0:03:53]}
Bxa8 {[%emt 0:00:16]} 50. Rxa8 {[%emt 0:00:16]} Nc6 {[%emt 0:04:27]} 51. Ra3 {
[%emt 0:02:25]} Rc2 {[%emt 0:00:06]} 52. Rb3+ {[%emt 0:00:34]} Kc4 {[%emt 0:00:
05]} 53. Rb6 {[%emt 0:00:06]} Nd4 {[%emt 0:05:34]} 54. Nb4 {[%emt 0:00:10]} Rd2
{[%emt 0:01:26]} 55. Na6 {[%emt 0:00:33]} Rd1+ {[%emt 0:00:59]} 56. Kh2 {
[%emt 0:00:01]} Rd2 {[%emt 0:00:02]} 57. Kg1 {[%emt 0:01:27]} Rd1+ {[%emt 0:00:
04]} 58. Kh2 {[%emt 0:00:03]} Rd2 {[%emt 0:00:02]} 59. Rb7 {[%emt 0:02:29]}
Rxf2 {[%emt 0:01:25]} 60. Rxh7 {[%emt 0:00:23]} Ra2 {[%emt 0:01:20]} 61. Rc7+ {
[%emt 0:20:20]} 1/2-1/2

[Event "FIDE Chesscom Grand Swiss 2021"]
[Site "Riga"]
[Date "2021.11.07"]
[Round "11.22"]
[White "Antipov, Mikhail Al."]
[Black "Najer, Evgeniy"]
[Result "1/2-1/2"]
[ECO "B90"]
[WhiteElo "2619"]
[BlackElo "2654"]
[Annotator "RC"]
[PlyCount "126"]
[EventDate "2021.10.27"]
[EventType "swiss"]
[EventCountry "LAT"]
[Tiebreak "Cut1 Buchholz+Sonneborn-Berger (Swiss)"]
[SourceTitle "playchess.com"]
[Source "ChessBase"]
[SourceQuality "1"]
[TimeControl "40/6000+30:20/3000+30:900+30"]

1. e4 {[%emt 0:00:03]} c5 {[%emt 0:02:22]} 2. Nf3 {[%emt 0:00:06]} d6 {[%emt 0:
00:07]} 3. d4 {[%emt 0:00:04]} cxd4 {[%emt 0:00:05]} 4. Nxd4 {[%emt 0:00:03]}
Nf6 {[%emt 0:00:06]} 5. Nc3 {[%emt 0:00:05]} a6 {[%emt 0:00:04]} 6. Be3 {
[%emt 0:00:05]} e5 {[%emt 0:00:20]} 7. Nb3 {[%emt 0:00:05]} Be6 {[%emt 0:00:04]
} 8. f3 {[%emt 0:00:06]} h5 {[%emt 0:00:11]} 9. Nd5 {[%emt 0:00:26]} Bxd5 {
[%emt 0:00:08]} 10. exd5 {[%emt 0:00:04]} g6 {[%emt 0:00:40]} 11. Qd2 {[%emt 0:
00:21]} Nbd7 {[%emt 0:00:40]} 12. O-O-O {[%emt 0:00:14]} Bg7 {[%emt 0:00:27]}
13. Kb1 {[%emt 0:13:47]} Qc7 {[%emt 0:00:17]} 14. h3 {[%emt 0:11:27]} Rc8 {
[%emt 0:01:29]} 15. c4 {[%emt 0:14:54]} b6 {[%emt 0:06:38]} 16. g3 {[%emt 0:00:
57]} Nc5 {[%emt 0:01:45]} 17. Be2 {[%emt 0:09:40]} Nxb3 {[%emt 0:19:44]} 18.
axb3 {[%emt 0:00:09]} a5 {[%emt 0:00:04]} 19. g4 {[%emt 0:00:32]} Kf8 {[%emt 0:
02:46]} 20. g5 {[%emt 0:07:37]} Nd7 {[%emt 0:00:32]} 21. Rhf1 {[%emt 0:00:08]}
Re8 {[%emt 0:05:18]} 22. f4 {[%emt 0:16:58]} exf4 {[%emt 0:00:22]} 23. Rxf4 {
[%emt 0:00:05]} Be5 {[%emt 0:02:58]} 24. Rf3 {[%emt 0:00:06]} Kg7 {[%emt 0:02:
48]} 25. Rdf1 {[%emt 0:00:05]} Re7 {[%emt 0:06:06]} 26. Bd3 {[%emt 0:00:38]}
Rhe8 {[%emt 0:18:14]} 27. Qc2 {[%emt 0:02:33]} Rb8 {[%emt 0:09:15]} 28. h4 {
[%emt 0:09:12]} Qd8 {[%emt 0:02:22]} 29. Bd2 {[%emt 0:06:21]} Qe8 {[%emt 0:02:
58]} 30. Bc3 {[%emt 0:00:33]} Kg8 {[%emt 0:01:07]} 31. Ka2 {[%emt 0:07:14]}
Bxc3 {[%emt 0:01:39]} 32. Qxc3 {[%emt 0:00:39]} Ne5 {[%emt 0:00:55]} 33. Rf6 {
[%emt 0:00:11]} Qd7 {[%emt 0:00:51]} 34. Re1 {[%emt 0:04:17]} Qc7 {[%emt 0:04:
58]} 35. Rxe5 {[%emt 0:05:42]} Rxe5 {[%emt 0:00:42]} 36. Bxg6 {[%emt 0:00:03]}
fxg6 {[%emt 0:01:58]} 37. Rxg6+ {[%emt 0:00:01]} Kf7 {[%emt 0:03:49]} 38. Rf6+
{[%emt 0:00:13]} Kg8 {[%emt 0:09:04]} 39. Rg6+ {[%emt 0:00:04]} Kf7 {[%emt 0:
00:47]} 40. Rh6 {[%emt 0:04:10]} Rg8 {[%emt 0:03:15]} 41. Rh7+ {[%emt 0:08:13]}
Rg7 {[%emt 0:00:16]} 42. Rh8 {[%emt 0:00:04]} Rf5 {[%emt 0:29:20]} 43. Qd3 {
[%emt 0:05:21]} Qd7 {[%emt 0:00:04]} 44. Qe2 {[%emt 0:00:06]} a4 {[%emt 0:00:
52]} 45. Qxh5+ {[%emt 0:22:56]} Ke7 {[%emt 0:00:04]} 46. Qh6 {[%emt 0:01:24]}
axb3+ {[%emt 0:01:19]} 47. Kxb3 {[%emt 0:01:34]} Rgf7 {[%emt 0:12:42]} 48. g6 {
[%emt 0:00:11]} b5 {[%emt 0:10:59]} 49. gxf7 {[%emt 0:01:25]} bxc4+ {[%emt 0:
00:02]} 50. Kc3 {[%emt 0:00:11]} Rf3+ {[%emt 0:00:02]} 51. Kd2 {[%emt 0:00:09]}
Rf2+ {[%emt 0:01:15]} 52. Ke1 {[%emt 0:00:07]} Rf1+ {[%emt 0:00:22]} 53. Kxf1 {
[%emt 0:00:15]} Qf5+ {[%emt 0:00:58]} 54. Kg1 {[%emt 0:00:48]} Qg4+ {[%emt 0:
00:30]} 55. Kf2 {[%emt 0:00:46]} Qf5+ {[%emt 0:00:03]} 56. Kg3 {[%emt 0:00:28]}
Qd3+ {[%emt 0:00:01]} 57. Kg4 {[%emt 0:00:14]} Qd1+ {[%emt 0:01:14]} 58. Kg5 {
[%emt 0:00:42]} Qxd5+ {[%emt 0:00:14]} 59. Kf4 {[%emt 0:00:36]} Qd2+ {[%emt 0:
00:26]} 60. Kf3 {[%emt 0:00:14]} Qd1+ {[%emt 0:00:11]} 61. Kf2 {[%emt 0:23:00]}
Qc2+ {[%emt 0:15:39]} 62. Kg3 {[%emt 0:00:10]} Qd3+ {[%emt 0:00:14]} 63. Kg4 {
[%emt 0:00:05]} Qd1+ {[%emt 0:01:25]} 1/2-1/2

[Event "FIDE Chesscom Grand Swiss 2021"]
[Site "Riga"]
[Date "2021.11.07"]
[Round "11.28"]
[White "Demchenko, Anton"]
[Black "Hovhannisyan, Robert"]
[Result "*"]
[ECO "C50"]
[WhiteElo "2651"]
[BlackElo "2622"]
[Annotator "RC"]
[PlyCount "56"]
[EventDate "2021.10.27"]
[EventType "swiss"]
[EventCountry "LAT"]
[Tiebreak "Cut1 Buchholz+Sonneborn-Berger (Swiss)"]
[SourceTitle "playchess.com"]
[Source "ChessBase"]
[SourceQuality "1"]
[TimeControl "40/6000+30:20/3000+30:900+30"]

1. e4 {[%emt 0:00:03]} e5 {[%emt 0:00:05]} 2. Nf3 {[%emt 0:00:08]} Nc6 {
[%emt 0:00:04]} 3. Bc4 {[%emt 0:00:08]} Bc5 {[%emt 0:00:08]} 4. d3 {[%emt 0:00:
05]} Nf6 {[%emt 0:00:05]} 5. a4 {[%emt 0:00:16]} a5 {[%emt 0:01:53]} 6. Be3 {
[%emt 0:00:21]} Bxe3 {[%emt 0:12:46]} 7. fxe3 {[%emt 0:01:21]} O-O {[%emt 0:00:
09]} 8. Nc3 {[%emt 0:00:24]} d6 {[%emt 0:00:23]} 9. Qe2 {[%emt 0:00:19]} Be6 {
[%emt 0:03:34]} 10. O-O-O {[%emt 0:03:13]} Qe7 {[%emt 0:07:40]} 11. Kb1 {
[%emt 0:01:09]} Rad8 {[%emt 0:02:03]} 12. Bxe6 {[%emt 0:03:41]} Qxe6 {[%emt 0:
05:51]} 13. g4 {[%emt 0:00:55]} Nb4 {[%emt 0:07:18]} 14. g5 {[%emt 0:03:59]}
Nd7 {[%emt 0:00:59]} 15. d4 {[%emt 0:01:07]} c6 {[%emt 0:03:41]} 16. h4 {
[%emt 0:09:47]} d5 {[%emt 0:04:08]} 17. exd5 {[%emt 0:10:55]} cxd5 {[%emt 0:00:
19]} 18. dxe5 {[%emt 0:16:53]} Nxe5 {[%emt 0:01:06]} 19. Nxe5 {[%emt 0:09:11]}
Qxe5 {[%emt 0:00:13]} 20. Rd4 {[%emt 0:01:51]} Rfe8 {[%emt 0:11:09]} 21. Rhd1 {
[%emt 0:00:22]} Rc8 {[%emt 0:07:21]} 22. Qf2 {[%emt 0:04:05]} Rc4 {[%emt 0:05:
28]} 23. Rxc4 {[%emt 0:11:28]} dxc4 {[%emt 0:00:04]} 24. Rd4 {[%emt 0:00:04]}
Qe6 {[%emt 0:04:13]} 25. Re4 {[%emt 0:15:22]} Qc6 {[%emt 0:00:52]} 26. Rxe8+ {
[%emt 0:01:16]} Qxe8 {[%emt 0:00:04]} 27. Qf4 {[%emt 0:00:04]} h6 {[%emt 0:10:
51]} 28. Qxc4 {[%emt 0:10:33]} Qxe3 {[%emt 0:01:26]} *

[Event "FIDE Chesscom Grand Swiss 2021"]
[Site "Riga"]
[Date "2021.11.07"]
[Round "11.29"]
[White "Donchenko, Alexander"]
[Black "Zvjaginsev, Vadim"]
[Result "0-1"]
[ECO "A43"]
[WhiteElo "2648"]
[BlackElo "2609"]
[Annotator "RC"]
[PlyCount "82"]
[EventDate "2021.10.27"]
[EventType "swiss"]
[EventCountry "LAT"]
[Tiebreak "Cut1 Buchholz+Sonneborn-Berger (Swiss)"]
[SourceTitle "playchess.com"]
[Source "ChessBase"]
[SourceQuality "1"]
[TimeControl "40/6000+30:20/3000+30:900+30"]

1. d4 {[%emt 0:00:04]} c5 {[%emt 0:01:32]} 2. d5 {[%emt 0:00:20]} g6 {[%emt 0:
00:19]} 3. e4 {[%emt 0:01:03]} Bg7 {[%emt 0:00:22]} 4. c4 {[%emt 0:00:59]} d6 {
[%emt 0:00:18]} 5. Be2 {[%emt 0:01:28]} e6 {[%emt 0:01:06]} 6. Nf3 {[%emt 0:01:
06]} exd5 {[%emt 0:02:49]} 7. cxd5 {[%emt 0:01:09]} Bg4 {[%emt 0:01:08]} 8.
Nfd2 {[%emt 0:04:57]} Bxe2 {[%emt 0:01:26]} 9. Qxe2 {[%emt 0:00:10]} Ne7 {
[%emt 0:06:47]} 10. Nc3 {[%emt 0:06:08]} Nd7 {[%emt 0:06:15]} 11. h4 {[%emt 0:
12:42]} O-O {[%emt 0:01:33]} 12. h5 {[%emt 0:02:25]} Re8 {[%emt 0:02:57]} 13.
hxg6 {[%emt 0:01:48]} hxg6 {[%emt 0:01:05]} 14. Nc4 {[%emt 0:06:08]} Nf5 {
[%emt 0:04:12]} 15. Bf4 {[%emt 0:05:08]} Nb6 {[%emt 0:04:33]} 16. Nd2 {[%emt 0:
23:08]} Nd4 {[%emt 0:26:28]} 17. Qd3 {[%emt 0:10:05]} c4 {[%emt 0:04:12]} 18.
Qh3 {[%emt 0:00:10]} g5 {[%emt 0:04:40]} 19. Be3 {[%emt 0:02:06]} Nc2+ {
[%emt 0:00:26]} 20. Kd1 {[%emt 0:01:48]} Nxa1 {[%emt 0:00:13]} 21. Nf3 {
[%emt 0:00:25]} Nd7 {[%emt 0:02:23]} 22. Bxg5 {[%emt 0:12:17]} Qb6 {[%emt 0:05:
11]} 23. Qh7+ {[%emt 0:03:07]} Kf8 {[%emt 0:00:08]} 24. Bh6 {[%emt 0:00:04]}
Bxh6 {[%emt 0:00:08]} 25. Qxh6+ {[%emt 0:00:40]} Ke7 {[%emt 0:00:04]} 26. Qg5+
{[%emt 0:00:33]} f6 {[%emt 0:00:09]} 27. Rh7+ {[%emt 0:00:36]} Kd8 {[%emt 0:00:
04]} 28. Qg7 {[%emt 0:00:52]} Nf8 {[%emt 0:00:50]} 29. Qxf6+ {[%emt 0:02:22]}
Kc8 {[%emt 0:00:30]} 30. Rf7 {[%emt 0:01:05]} Nd7 {[%emt 0:02:30]} 31. Qg7 {
[%emt 0:05:39]} Rd8 {[%emt 0:00:35]} 32. Ne2 {[%emt 0:02:42]} a5 {[%emt 0:05:
09]} 33. Nf4 {[%emt 0:01:47]} Qxf2 {[%emt 0:02:19]} 34. Ne6 {[%emt 0:00:16]}
Nc2 {[%emt 0:01:15]} 35. Qc3 {[%emt 0:01:45]} Ne3+ {[%emt 0:00:19]} 36. Kc1 {
[%emt 0:00:02]} Rg8 {[%emt 0:00:50]} 37. b3 {[%emt 0:01:12]} Ne5 {[%emt 0:04:
11]} 38. Nxe5 {[%emt 0:00:41]} Qg1+ {[%emt 0:00:14]} 39. Kb2 {[%emt 0:00:05]}
Nd1+ {[%emt 0:00:25]} 40. Ka3 {[%emt 0:00:42]} Nxc3 {[%emt 0:00:15]} 41. Rc7+ {
[%emt 0:50:44]} Kb8 {[%emt 0:50:04]} 0-1

[Event "FIDE Chesscom Grand Swiss 2021"]
[Site "Riga"]
[Date "2021.11.07"]
[Round "11.30"]
[White "Abdusattorov, Nodirbek"]
[Black "Sindarov, Javokhir"]
[Result "1/2-1/2"]
[ECO "D85"]
[WhiteElo "2646"]
[BlackElo "2587"]
[Annotator "RC"]
[PlyCount "60"]
[EventDate "2021.10.27"]
[EventType "swiss"]
[EventCountry "LAT"]
[Tiebreak "Cut1 Buchholz+Sonneborn-Berger (Swiss)"]
[SourceTitle "playchess.com"]
[Source "ChessBase"]
[SourceQuality "1"]
[TimeControl "40/6000+30:20/3000+30:900+30"]

1. d4 {[%emt 0:00:21]} Nf6 {[%emt 0:00:51]} 2. c4 {[%emt 0:00:13]} g6 {[%emt 0:
00:12]} 3. Nc3 {[%emt 0:00:09]} d5 {[%emt 0:00:10]} 4. cxd5 {[%emt 0:01:02]}
Nxd5 {[%emt 0:00:10]} 5. e4 {[%emt 0:00:15]} Nxc3 {[%emt 0:00:06]} 6. bxc3 {
[%emt 0:00:08]} Bg7 {[%emt 0:00:05]} 7. Nf3 {[%emt 0:00:39]} c5 {[%emt 0:00:31]
} 8. Be3 {[%emt 0:00:10]} Qa5 {[%emt 0:00:17]} 9. Qd2 {[%emt 0:00:30]} Nc6 {
[%emt 0:00:05]} 10. Rb1 {[%emt 0:00:48]} a6 {[%emt 0:00:22]} 11. Rc1 {[%emt 0:
00:19]} cxd4 {[%emt 0:01:08]} 12. cxd4 {[%emt 0:00:11]} Qxd2+ {[%emt 0:00:12]}
13. Kxd2 {[%emt 0:00:13]} e6 {[%emt 0:02:58]} 14. h4 {[%emt 0:01:47]} O-O {
[%emt 0:57:50]} 15. Bd3 {[%emt 0:01:29]} Bd7 {[%emt 0:05:55]} 16. h5 {[%emt 0:
02:00]} Rfc8 {[%emt 0:00:16]} 17. h6 {[%emt 0:03:19]} Bf8 {[%emt 0:00:36]} 18.
Bg5 {[%emt 0:14:50]} b5 {[%emt 0:15:40]} 19. Rc2 {[%emt 0:09:29]} f5 {[%emt 0:
03:43]} 20. Ke3 {[%emt 0:19:54]} Nb4 {[%emt 0:07:27]} 21. Rxc8 {[%emt 0:00:15]}
Rxc8 {[%emt 0:00:01]} 22. Bb1 {[%emt 0:06:24]} Nc2+ {[%emt 0:02:51]} 23. Kd2 {
[%emt 0:00:21]} Na3 {[%emt 0:04:04]} 24. Bd3 {[%emt 0:03:19]} Nc4+ {[%emt 0:00:
14]} 25. Ke2 {[%emt 0:00:26]} Bc6 {[%emt 0:00:16]} 26. exf5 {[%emt 0:05:27]}
exf5 {[%emt 0:00:10]} 27. Rc1 {[%emt 0:01:43]} Bd5 {[%emt 0:03:40]} 28. Ne5 {
[%emt 0:00:23]} Ba3 {[%emt 0:02:34]} 29. Rc2 {[%emt 0:00:42]} Be6 {[%emt 0:01:
33]} 30. Bc1 {[%emt 0:01:30]} Bd5 {[%emt 0:00:29]} 1/2-1/2